Cogmind - Beta 15 @@@ ROGUE MODE // 2025.08.13 @ 10:58:08 Player: Jiber Result: Destroyed by S-27 Virus with Autogun Performance ------------- Evolutions (3) 1500 Regions Visited (7) 1400 Robots Destroyed (60) 300 Value Destroyed (2286) 2286 Prototype IDs (5) 100 Alien Tech Used (0) 0 Bonus (797) 797 TOTAL SCORE: 6383 Bonus ------- High Alert Combat Kills 12 Follower Combat Kills 85 Entered Garrisons 200 Used RIF Installer 500 Cogmind --------- Core Integrity 0/700 Matter 280/300 Energy 281/290 System Corruption 0% Temperature Cool (62) Movement Treading (145) Location -7/Factory Parts ------- > --- POWER (2) -------- Improved Deuterium Engine > --- PROPULSION (3) --- Advanced Treads Advanced Treads Advanced Treads > --- UTILITY (6) ------ Medium Storage Unit Hacking Suite Hacking Suite System Shield Relay Coupler [Duelist] (5) Relay Coupler [Demolisher] (18) > --- WEAPON (2) ------- Heavy Ion Cannon Advanced Assault Cannon > --- INVENTORY (10) --- Light Deuterium Engine Light Nuclear Core Aluminum Leg Improved Heat Sink Microactuators Heavy Ion Cannon Advanced Assault Cannon Proton Missile Launcher Proton Missile Launcher Remote Datajack Peak State ------------ > --- POWER ------------ Light Nuclear Core Improved Deuterium Engine > --- PROPULSION ------- Armored Huge Wheel > --- UTILITY ---------- Advanced Targeting Computer Improved Light Armor Plating Relay Coupler [Swarmer] Relay Coupler [Duelist] Relay Coupler [Demolisher] Relay Coupler [Hunter] > --- WEAPON ----------- Mini Assault Cannon Improved Remote Datajack > --- INVENTORY -------- Gravmag System Gravmag System Relay Coupler [Grunt] Heavy Plasma Cannon Remote Datajack [Rating: 50] Favorites ----------- Power Improved Deuterium Engine Engine Improved Deuterium Engine Power Core Light Nuclear Core Propulsion Carbon-fiber Leg Treads Advanced Treads Leg Carbon-fiber Leg Wheel Wheel Hover Unit Gravmag System Utility Hacking Suite Device Particle Charger Storage Small Storage Unit Processor Advanced Targeting Computer Hackware Hacking Suite Protection Improved Light Armor Plating Weapon Advanced Assault Cannon Energy Gun Pulse Rifle Energy Cannon Heavy Ion Cannon Ballistic Gun Assault Rifle Ballistic Cannon Advanced Assault Cannon Launcher Grenade Launcher Special Weapon Remote Datajack Build | -11 -10 -9 -9 -8 -7 -7 -7 ------- Run | Yrd Mat Mat Min Mat Fac Gar Fac Slots Evolved 6 | . . 2 . 2 2 . . Power 1 | . . . . 1 . . . Propulsion 1 | . . . . . 1 . . Utility 4 | . . 2 . 1 1 . . Weapon . | . . . . . . . . Parts Attached 85 | 7 3 16 2 6 7 27 17 Power 14 | 2 1 1 . 1 2 4 3 Engine 13 | 2 1 1 . 1 2 3 3 Core 1 | . . . . . . 1 . Reactor . | . . . . . . . . Propulsion 18 | 2 . 4 . . 1 6 5 Treads 5 | . . 2 . . . . 3 Leg 4 | . . . . . . 2 2 Wheel 7 | 2 . 2 . . 1 2 . Hover 2 | . . . . . . 2 . Flight . | . . . . . . . . Utility 28 | 1 1 5 . 3 2 11 5 Device 9 | . 1 3 . 2 1 1 1 Storage 2 | 1 . . . . . . 1 Processor 6 | . . 2 . 1 1 2 . Hackware 10 | . . . . . . 7 3 Protection 1 | . . . . . . 1 . Artifact . | . . . . . . . . Weapon 25 | 2 1 6 2 2 2 6 4 Energy Gun 7 | 1 . 4 . 1 . 1 . Energy Cannon 5 | . . 1 1 1 1 . 1 Ballistic Gun 4 | 1 . . . . 1 1 1 Ballistic Cannon 5 | . . 1 . . . 2 2 Launcher 2 | . 1 . 1 . . . . Special Weapon 2 | . . . . . . 2 . Impact Weapon . | . . . . . . . . Slashing Weapon . | . . . . . . . . Piercing Weapon . | . . . . . . . . Special Melee Weapon . | . . . . . . . . Unidentified Prototypes 1 | . . . . . . 1 . Parts Lost 31 | . . 2 8 6 . 12 3 Power 8 | . . . 1 1 . 5 1 Propulsion 6 | . . . 2 1 . 1 2 Utility 9 | . . 1 2 2 . 4 . Weapon 8 | . . 1 3 2 . 2 . Highest Loss Streak 8 | . . 1 8 6 . 7 2 To Critical Strikes 1 | . . 1 . . . . . Average Backups 6 | 2 7 7 5 2 3 4 8 Power . | . 1 1 1 . . . . Propulsion 1 | 1 3 1 1 . . 1 . Utility 1 | . . 2 2 1 1 . 1 Weapon 2 | . 1 2 . . . 1 3 Tool/Special . | . . . . . . . . Unused Backups 14 | . 4 2 . . . 2 6 Power 2 | . . . . . . . 2 Propulsion 3 | . 2 . . . . . 1 Utility . | . . . . . . . . Weapon 9 | . 2 2 . . . 2 3 Tool/Special . | . . . . . . . . Average Slot Usage (%) 79 | . 97 97 33 30 27 67 94 Engine 9 | . 14 11 3 4 5 5 11 Core 1 | . . . . . . 3 . Treads 2 | . . 4 7 . . . 4 Leg 5 | . . . . . . 1 14 Wheel 7 | . 28 17 . 3 3 5 . Device 5 | . 11 18 5 7 2 1 . Storage 4 | . 14 11 3 . . . 5 Processor 8 | . . 12 3 8 10 13 2 Hackware 16 | . . . . . . 16 36 Energy Gun 3 | . 1 14 3 2 . . . Energy Cannon 2 | . . 2 3 4 3 1 4 Ballistic Gun 1 | . 14 . . . 2 1 . Ballistic Cannon 4 | . . 2 . . . 6 7 Launcher 1 | . 12 1 . . . . . Special Weapon 1 | . . . . . . 3 2 Peak Build Rating 50 | 6 9 24 23 18 33 50 49 Average Rating 31 | 4 6 17 6 9 15 39 43 On Entrance 15 | . 6 9 23 1 3 33 45 Naked Turns 91 | . . . 82 9 . . . Heaviest Build 44 | 13 18 24 24 21 31 32 44 Greatest Support 66 | 26 26 46 46 10 28 30 66 Greatest Overweight (x) 6 | . . 1 1 6 1 1 1 Average Overweight (x) . | . . . . . . . . Largest Inventory Capacity 10 | 8 8 8 8 5 5 5 10 Average Capacity 7 | 7 8 8 5 5 5 5 8 Most Carried 10 | 5 8 8 7 5 5 5 10 Average Carried 6 | 3 7 7 5 1 3 4 8 Final Capacity 10 | 8 8 8 5 5 5 5 10 Final Carried 10 | 4 7 7 5 2 5 5 10 Class Distribution -------------------- 52% | Mutant 30% | Hacker-Mutant 11% | Bothacker-Mutant 4% | Scavenger-Mutant Dominant Class ---------------- Mutant | -10/Materials Mutant | -9/Materials Mutant | -9/Mines Mutant | -8/Materials Mutant | -7/Factory Mutant | -7/Garrison Hacker-Mutant | -7/Factory Resources | -11 -10 -9 -9 -8 -7 -7 -7 ----------- Run | Yrd Mat Mat Min Mat Fac Gar Fac Matter Collected 2048 | 223 17 239 39 11 29 942 548 Remotely 149 | . . . . . . 149 . Salvage Created 1748 | . 49 234 46 80 . 709 630 Parts 110 | . 9 21 2 3 . 34 41 Haulers Intercepted 1 | . . . . . . . 1 Recyclers Shooed 1 | . . . . . . . 1 Parts Field Recycled . | . . . . . . . . Retrieved Matter . | . . . . . . . . Parts Self-Destructed . | . . . . . . . . Prevented . | . . . . . . . . Kills | -11 -10 -9 -9 -8 -7 -7 -7 ------- Run | Yrd Mat Mat Min Mat Fac Gar Fac Combat Hostiles Destroyed 50 | . 3 10 4 1 . 19 13 Guns 9 | . 1 2 2 . . 4 . Cannons 35 | . . 4 2 1 . 15 13 AOE 6 | . 2 4 . . . . . Classes Destroyed 14 | . 2 2 1 1 . 3 5 Worker 3 | . . . . . . . 3 Builder 1 | . . . . . . . 1 Tunneler 1 | . . . . . . . 1 Hauler 1 | . . . . . . . 1 Recycler 2 | . . . . . . . 2 Operator 2 | . . . . 1 . . 1 Watcher 3 | . 1 1 . . . . 1 Swarmer 18 | . 3 6 1 . . 4 4 Grunt 13 | . . 2 . 1 . 4 6 Duelist 3 | . . . . . . 3 . Sentry 7 | . . 2 . . . 4 1 Hunter 2 | . . . . . . 2 . Programmer 4 | . . . . . . 2 2 Assembled 3 | . . . 3 . . . . Best Kill Streak 6 | . 4 6 4 2 . 4 5 Combat Bots Only 6 | . 3 6 4 1 . 4 3 Max Kills in Single Turn 3 | . 3 3 1 1 . 1 3 Gunslinging . | . . . . . . . . Exploded 2 | . 2 2 . . . . . Melee . | . . . . . . . . Uniques/NPCs Destroyed . | . . . . . . . . Combat | -11 -10 -9 -9 -8 -7 -7 -7 -------- Run | Yrd Mat Mat Min Mat Fac Gar Fac Hostile Shots Fired 593 | . 2 60 102 43 12 245 129 Missed 176 | . . 10 24 5 4 82 51 Hits 417 | . 2 50 78 38 8 163 78 Melee 16 | . . . 9 . . 7 . Projectile 401 | . 2 50 69 38 8 156 78 Critical Strikes 12 | . . 1 1 4 . 3 3 Part Disruptions 1 | . . . 1 . . . . Damage Taken 5878 | . 52 562 1202 577 90 2223 1172 Core 1276 | . 7 84 273 207 18 535 152 Absorbed by Shields . | . . . . . . . . Core Remaining (%) 67 | 100 97 . 10 62 . . . Volleys Fired 202 | . 4 19 9 16 1 91 62 Largest 2 | . 2 2 2 2 2 2 2 Hottest 129 | . 50 126 123 129 88 109 105 Shots Fired 307 | . 8 35 15 22 2 126 99 Gun 60 | . 4 18 9 7 1 21 . Cannon 230 | . . 14 5 15 1 96 99 Launcher 8 | . 4 3 1 . . . . Special 9 | . . . . . . 9 . Kinetic 169 | . 4 6 . . 1 97 61 Thermal 121 | . . 26 14 22 1 20 38 Explosive 8 | . 4 3 1 . . . . Electromagnetic . | . . . . . . . . Robot Hit Streak 17 | . 5 6 7 10 7 17 17 Robot Miss Streak 4 | . 1 4 3 1 . 3 4 Penetration Max . | . . . . . . . . Secondary Targets . | . . . . . . . . Shots Hit Robots 187 | . 5 19 6 20 2 84 51 Core Hits 90 | . 6 13 6 5 . 34 26 Critical Kills . | . . . . . . . . Critical Parts Destroyed . | . . . . . . . . Critical Strikes 8 | . . . . . . 6 2 Blast 8 | . . . . . . 6 2 Melee Attacks . | . . . . . . . . Impact . | . . . . . . . . Slashing . | . . . . . . . . Piercing . | . . . . . . . . Sneak Attacks . | . . . . . . . . Combat Hostiles . | . . . . . . . . Follow-up Attacks . | . . . . . . . . Damage Inflicted 5341 | . 250 588 234 474 45 1954 1796 Guns 707 | . 32 230 94 115 17 219 . Cannons 3874 | . . 195 48 359 28 1731 1513 Explosions 756 | . 218 163 92 . . . 283 Melee . | . . . . . . . . Ramming 4 | . . . . . . 4 . Kinetic 2799 | . 32 64 . . 17 1683 1003 Thermal 1782 | . . 361 142 474 28 267 510 Explosive 756 | . 218 163 92 . . . 283 Electromagnetic . | . . . . . . . . Impact . | . . . . . . . . Slashing . | . . . . . . . . Piercing . | . . . . . . . . Highest Corruption 4 | . 2 . . . . 4 4 Average Corruption 3 | . 2 . . . . 3 2 Corruption Purged 4 | . . . . . . . 4 Corruption Blocked . | . . . . . . . . Effects 21 | . 3 . . . . 16 2 Message Errors 2 | . . . . . . 2 . Matter Fused 8 | . 1 . . . . 6 1 Heat Flow Errors 3 | . 1 . . . . 1 1 Energy Discharges 3 | . . . . . . 3 . Parts Fused 1 | . . . . . . 1 . Data Loss (major) 3 | . 1 . . . . 2 . Misfires 1 | . . . . . . 1 . Overload Shots . | . . . . . . . . Overflow Damage 173 | . 5 . 8 8 . 3 149 Projectiles 20 | . . . . 8 . 3 9 Explosions 153 | . 5 . 8 . . . 140 Melee . | . . . . . . . . Knockbacks 24 | . . . . . . 10 14 Impact . | . . . . . . . . Kinetic 22 | . . . . . . 9 13 Secondary 2 | . . . . . . 1 1 Self-Inflicted Damage 244 | . 33 . 49 . . 2 160 Shots 5 | . 2 . 1 . . . 2 Rammed 1 | . . . . . . 1 . Targets Rammed 1 | . . . . . . 1 . Kicked . | . . . . . . . . Crushed . | . . . . . . . . Highest Temperature 364 | . 227 300 364 198 36 336 258 Average Temperature 100 | . 117 131 175 100 21 96 73 Received Heat Transfer 1601 | . . 222 260 315 39 447 318 Siege Activations . | . . . . . . . . Martial Activations . | . . . . . . . . Shielding Activations . | . . . . . . . . Robots Disrupted . | . . . . . . . . Combat Hostiles . | . . . . . . . . Robots Corrupted . | . . . . . . . . Combat Hostiles . | . . . . . . . . Parts Fried . | . . . . . . . . Impact Corruptions . | . . . . . . . . Robots Melted . | . . . . . . . . Combat Hostiles . | . . . . . . . . Parts Melted 2 | . . 1 . . . . 1 Heat Transferred 2738 | . . 629 259 740 37 407 666 Parts Sabotaged . | . . . . . . . . Parts Stolen . | . . . . . . . . Parts Stripped . | . . . . . . . . Power Chain Reactions . | . . . . . . . . Alert | -11 -10 -9 -9 -8 -7 -7 -7 ------- Run | Yrd Mat Mat Min Mat Fac Gar Fac Maximum Alert Level 2 | . . . . . . 2 1 Low Security (%) 65 | 100 100 100 100 100 100 33 55 Level 1 26 | . . . . . . 41 44 Level 2 7 | . . . . . . 25 . Level 3 . | . . . . . . . . Level 4 . | . . . . . . . . Level 5 . | . . . . . . . . High Security . | . . . . . . . . Max Security . | . . . . . . . . Peak Influence 437 | . 150 172 48 50 18 437 348 Initial 224 | . . 54 13 . 18 2 224 Average 159 | . 42 70 8 13 2 250 209 Influence Increases 1930 | . 193 310 49 111 4 625 638 Destroy 0b10 Robot/C 980 | . 60 200 20 20 . 420 260 Destroy 0b10 Robot/NC 65 | . 5 5 . 5 . . 50 Destroy Leader 178 | . 12 52 . 10 . 30 74 Allied During Kill 5 | . . . . . . 5 . Successful Hack 73 | . 49 12 . . 4 . 8 Disable Machine 255 | . 45 15 15 . . . 180 Anti-Garrison Action 50 | . . . . . . 50 . Destroy Structure 144 | . 22 26 14 1 . 15 66 Partial Spotted 30 | . . . . 30 . . . Lose Combat Pursuer 150 | . . . . 45 . 105 . Influence Decreases 1612 | . 63 406 83 71 40 202 747 Entered New Map 324 | . . 76 21 . 22 2 203 Time Decay 928 | . 63 313 10 30 18 . 494 Lost Part 260 | . . 17 52 41 . 120 30 Lost Ally 100 | . . . . . . 80 20 Squads Dispatched 12 | . . 2 . 2 2 . 6 Investigation 4 | . . 2 . . 1 . 1 Extermination 2 | . . . . . . . 2 Reinforcement 3 | . . . . 2 1 . . Assault . | . . . . . . . . Garrison 3 | . . . . . . . 3 Intercept . | . . . . . . . . Searches Triggered . | . . . . . . . . Construction Impeded . | . . . . . . . . Haulers Reinforced . | . . . . . . . . Active Scanning Responses . | . . . . . . . . Cargo Convoy Interrupts . | . . . . . . . . Stealth | -11 -10 -9 -9 -8 -7 -7 -7 --------- Run | Yrd Mat Mat Min Mat Fac Gar Fac Distress Signals . | . . . . . . . . Communications Jammed . | . . . . . . . . Distress Signals . | . . . . . . . . Times Spotted 99 | . 4 12 20 8 4 30 21 Peak Tracking Total 14 | . 4 6 14 5 3 6 4 Tactical Retreats 13 | . . . 3 3 . 7 . Traps | -11 -10 -9 -9 -8 -7 -7 -7 ------- Run | Yrd Mat Mat Min Mat Fac Gar Fac Traps Triggered 8 | . 1 . . . . 6 1 Indirectly . | . . . . . . . . Trap Hack Attempts . | . . . . . . . . Triggered . | . . . . . . . . Disarmed . | . . . . . . . . Reprogrammed . | . . . . . . . . Reused . | . . . . . . . . Traps Extracted . | . . . . . . . . Installed . | . . . . . . . . Triggered . | . . . . . . . . Machines | -11 -10 -9 -9 -8 -7 -7 -7 ---------- Run | Yrd Mat Mat Min Mat Fac Gar Fac Machines Disabled 19 | . 3 2 1 . . 1 12 Max in Single Turn 4 | . 1 1 1 . . 1 4 Garrison Relay 1 | . . . . . . 1 . Machines Repaired . | . . . . . . . . Machines Dismantled . | . . . . . . . . Machines Sabotaged . | . . . . . . . . Overloaded Fab Kills . | . . . . . . . . Hacking | -11 -10 -9 -9 -8 -7 -7 -7 --------- Run | Yrd Mat Mat Min Mat Fac Gar Fac Machines Accessed 16 | . 4 3 . . 3 1 5 Terminals 10 | . 4 1 . . 1 1 3 Fabricators 1 | . . . . . . . 1 Repair Stations 1 | . . 1 . . . . . Recycling Units 2 | . . 1 . . 1 . . Scanalyzers . | . . . . . . . . Garrison Access 2 | . . . . . 1 . 1 Total Hacks 41 | . 10 12 . . 6 2 11 Successful 19 | . 5 4 . . 3 . 7 Failed 22 | . 5 8 . . 3 2 4 Catastrophic 6 | . 4 2 . . . . . Database Lockouts . | . . . . . . . . Manual 10 | . 6 3 . . . . 1 Terminals 29 | . 10 6 . . 4 2 7 Fabricators 2 | . . . . . . . 2 Repair Stations 4 | . . 4 . . . . . Recycling Units 3 | . . 2 . . 1 . . Scanalyzers . | . . . . . . . . Garrison Access 3 | . . . . . 1 . 2 Terminal Hacks 12 | . 5 1 . . 1 . 5 Record 1 | . . . . . . . 1 Prototype ID Bank 2 | . 1 1 . . . . . Open DSF 2 | . . . . . 1 . 1 Level Access Points 1 | . 1 . . . . . . Branch Access Points 1 | . 1 . . . . . . Locate Traps 1 | . 1 . . . . . . Patrol Status 1 | . . . . . . . 1 Extermination Status 1 | . . . . . . . 1 Zone Layout 2 | . 1 . . . . . 1 Fabricator Hacks . | . . . . . . . . Repair Station Hacks 2 | . . 2 . . . . . Scan Component 2 | . . 2 . . . . . Recycling Unit Hacks 2 | . . 1 . . 1 . . Retrieve Matter 1 | . . 1 . . . . . Retrieve Components 1 | . . . . . 1 . . Scanalyzer . | . . . . . . . . Garrison Access Hacks 3 | . . . . . 1 . 2 Unlock Access 2 | . . . . . 1 . 1 Coupler Status 1 | . . . . . . . 1 Unauthorized Hacks . | . . . . . . . . Terminals . | . . . . . . . . Fabricators . | . . . . . . . . Repair Stations . | . . . . . . . . Recycling Units . | . . . . . . . . Scanalyzers . | . . . . . . . . Garrison Access . | . . . . . . . . Data Cores Recovered 1 | . . . . . . . 1 Used . | . . . . . . . . Hacking Detections 13 | . 4 3 . . 2 1 3 Full Trace Events 4 | . . 2 . . 1 . 1 Feedback Events . | . . . . . . . . Feedback Blocked . | . . . . . . . . Robot Schematics Acquired . | . . . . . . . . Robots Built . | . . . . . . . . Authchips . | . . . . . . . . Time . | . . . . . . . . Total Robot Build Rating . | . . . . . . . . Part Schematics Acquired . | . . . . . . . . Parts Built . | . . . . . . . . Authchips . | . . . . . . . . Time . | . . . . . . . . Total Part Build Rating . | . . . . . . . . Parts Repaired . | . . . . . . . . Time . | . . . . . . . . Parts Recycled . | . . . . . . . . Recycled Matter . | . . . . . . . . Retrieved Matter 46 | . . 46 . . . . . Retrieved Components . | . . . . . . . . Parts Scanalyzed . | . . . . . . . . Part Schematics Acquired . | . . . . . . . . Parts Damaged . | . . . . . . . . Bothacking | -11 -10 -9 -9 -8 -7 -7 -7 ------------ Run | Yrd Mat Mat Min Mat Fac Gar Fac Used RIF Installer 1 | . . . . . . 1 . Robots Hacked 7 | . . . . . . 7 . Non-combat . | . . . . . . . . Combat 7 | . . . . . . 7 . Robot Hacks Applied 8 | . . . . . . 8 . disable_weapons 1 | . . . . . . 1 . overwrite_iff 4 | . . . . . . 4 . formatsys_high 3 | . . . . . . 3 . Relay Couplers Released 7 | . . . . . . 7 . Machine Destruction 3 | . . . . . . 3 . Programmers 4 | . . . . . . 4 . Attached 7 | . . . . . . 7 . Fabnet Peak Effective % . | . . . . . . . . Robots Rewired . | . . . . . . . . Allies Hacked . | . . . . . . . . Hacks Repelled . | . . . . . . . . Allies | -11 -10 -9 -9 -8 -7 -7 -7 -------- Run | Yrd Mat Mat Min Mat Fac Gar Fac Total Allies 10 | . . . 3 . . 7 . Largest Group 3 | . . . 3 . . 3 1 Highest-Rated Group 73 | . . . 40 . . 73 16 Highest-Rated Ally 30 | . . . 16 . . 30 16 Total Orders . | . . . . . . . . Ally Attacks 46 | . . . 2 . . 40 4 Total Damage 677 | . . . 18 . . 598 61 Kills 2 | . . . . . . 2 . Allies Corrupted . | . . . . . . . . Allies Melted . | . . . . . . . . Intel | -11 -10 -9 -9 -8 -7 -7 -7 ------- Run | Yrd Mat Mat Min Mat Fac Gar Fac Active Infowar (turns) 395 | . 196 199 . . . . . Seismic 395 | . 196 199 . . . . . Robot Analysis Total . | . . . . . . . . Derelict Logs Recovered 1 | . . . 1 . . . . Drone Launches . | . . . . . . . . Drone Recoveries . | . . . . . . . . Exploration | -11 -10 -9 -9 -8 -7 -7 -7 ------------- Run | Yrd Mat Mat Min Mat Fac Gar Fac Turns Passed 3903 | 58 232 737 122 113 205 1128 1308 Spaces Moved 2518 | 53 179 330 158 111 289 733 665 Core 487 | 14 . . 152 100 221 . . Treads 238 | . . 74 6 . . . 158 Legs 603 | . . . . . . 96 507 Wheels 1183 | 39 179 256 . 11 68 630 . Hover 7 | . . . . . . 7 . Flight . | . . . . . . . . Fastest Speed 50 | 50 90 80 50 50 50 56 120 Average Speed 106 | 79 90 105 56 58 64 106 153 Slowest Speed 350 | 90 90 170 250 350 115 190 225 Overloaded Moves . | . . . . . . . . Propulsion Burnouts . | . . . . . . . . Robots Hopped . | . . . . . . . . Potential Cave-ins . | . . . . . . . . Cave-ins Triggered . | . . . . . . . . Exploration Rate (%) 24 | 3 31 26 46 16 7 55 15 Regions Visited 7 Branch Regions 1 Pre-discovered Areas . | . . . . . . . . Known Exits Taken 2 | . 1 . . . 1 . . Unknown Exits Taken 4 | 1 . 1 1 1 . . . Scrap Searched 1 | . . . 1 . . . . Spaces Dug . | . . . . . . . . Terrain Destroyed 121 | . 20 24 14 1 . . 62 Melee . | . . . . . . . . Projectile 16 | . . 2 1 1 . . 12 AOE 105 | . 20 22 13 . . . 50 Terrain Rammed . | . . . . . . . . Walls Destroyed . | . . . . . . . . Machines Disabled . | . . . . . . . . Actions | -11 -10 -9 -9 -8 -7 -7 -7 --------- Run | Yrd Mat Mat Min Mat Fac Gar Fac Total 3429 | 67 245 687 175 135 304 961 855 Wait 482 | . 43 296 5 . . 54 84 Move 2511 | 52 178 329 157 110 289 731 665 Hop . | . . . . . . . . Pick Up 73 | 8 10 14 1 2 7 18 13 Fast Attach 32 | 2 . 3 . 2 1 15 9 Attach 39 | 4 1 7 3 5 6 11 2 Detach . | . . . . . . . . Swap 19 | 1 2 6 . . . 2 8 Drop 46 | . 7 13 . . . 14 12 Fire 202 | . 4 19 9 16 1 91 62 Melee . | . . . . . . . . Ram 1 | . . . . . . 1 . Kick . | . . . . . . . . Crush . | . . . . . . . . Escape Stasis 24 | . . . . . . 24 . Rewire . | . . . . . . . . Trap . | . . . . . . . . Miscellaneous . | . . . . . . . . Route ------- -11/Scrapyard -10/Materials (discovered 5 exits: *Mat x3 / Min x2) -9/Materials -9/Mines -8/Materials -7/Factory -7/Garrison -7/Factory (discovered 2 exits: [*Low] / Gar) History --------- Turn | Location | Event 9 | -11/Scrapyard | Discovered new exit (range 16) 59 | -11/Scrapyard | Entered Materials 90 | -10/Materials | Discovered new exit (range 14) 206 | -10/Materials | Identified exit to Materials 247 | -10/Materials | Identified exit to Mines 291 | -10/Materials | Entered another Materials area 291 | -9/Materials | Evolved 2 slots: Utility x2 314 | -9/Materials | Build established: Mutant 958 | -9/Materials | Discovered new exit (range 10) 1028 | -9/Materials | Entered Mines 1029 | -9/Mines | Assembled infested the area 1038 | -9/Mines | Met a Derelict bent on vengeance 1068 | -9/Mines | Core integrity fell below 50% 1068 | -9/Mines | Released all parts (4) 1073 | -9/Mines | Core integrity fell below 20% 1078 | -9/Mines | Assisted by bots powering up and referring to "LRC-V3" 1095 | -9/Mines | Lost 8 parts (1p2n2u3w) 1123 | -9/Mines | Lost 4 allies 1143 | -9/Mines | Discovered new exit (range 15) 1150 | -9/Mines | Entered Materials 1150 | -8/Materials | Evolved 2 slots: Power x1, Utility x1 1256 | -8/Materials | Discovered new exit (range 10) 1263 | -8/Materials | Entered Factory 1263 | -7/Factory | Evolved 2 slots: Propulsion x1, Utility x1 1265 | -7/Factory | Lost 6 parts (1p1n2u2w) 1468 | -7/Factory | Identified exit to Garrison 1468 | -7/Factory | Entered Garrison 1511 | -7/Garrison | Installed Relay Interface Framework 1750 | -7/Garrison | Lost 3 parts (1p1u1w) 1768 | -7/Garrison | Triggered checkpoint 2032 | -7/Garrison | Garrison Relay disabled 2050 | -7/Garrison | Rescued a captive Derelict 2065 | -7/Garrison | Rescued a captive Derelict 2150 | -7/Garrison | Triggered checkpoint 2153 | -7/Garrison | Triggered checkpoint 2202 | -7/Garrison | Triggered checkpoint 2244 | -7/Garrison | Triggered checkpoint 2251 | -7/Garrison | Build established: Bothacker-Mutant 2369 | -7/Garrison | Discovered new exit (range 15) 2388 | -7/Garrison | Core integrity fell below 50% 2467 | -7/Garrison | Lost 7 parts (2p1n3u1w) 2596 | -7/Garrison | Entered Factory 2596 | -7/Factory | Accompanied by 1 ally 2880 | -7/Factory | Core integrity fell below 20% 3007 | -7/Factory | Garrison activated, responded to threat 3024 | -7/Factory | Build established: Hacker-Mutant 3136 | -7/Factory | Identified exit to Garrison 3874 | -7/Factory | Discovered new exit (range 15) 3904 | -7/Factory | Destroyed by S-27 Virus with Autogun Last Messages --------------- 03778_ Acquired 24 matter. 03779_ U-05 Engineer lays Concrete. 03780_ Acquired 1 matter. 03781_ U-05 Engineer lays Concrete. 03781_ Acquired 23 matter. 03782_ U-05 Engineer lays Concrete. 03783_ U-05 Engineer builds a Wall. 03784_ U-05 Engineer lays Concrete. 03784_ Acquired 2 matter. 03785_ U-05 Engineer builds a Wall. 03785_ U-05 Engineer lays Concrete. 03787_ Acquired 2 matter. 03788_ U-05 Engineer lays Concrete. 03806_ Connecting with DSF Access... 03818_ K-01 Serf collects debris. 03837_ R-06 Scavenger collects Remote Datajack. 03840_ R-06 Scavenger collects Gravmag System. 03847_ R-06 Scavenger collects Wheel. 03853_ R-06 Scavenger collects Aluminum Leg. 03874_ EXIT=FOUND Map ----- +----------------------------------------------------+ | ??????????????????????????????????????????# # | | ??????????????????????????????????????????# + | | ??????????????????????????????????????????# #### | | ??????????????????????????????????????????# #??# | | ??????????????????????????????????????????# #??# = | | ??????????????????????????????????????????# #??### | | ????????????????????????????????????#######/###### | | ??????????????????????????????????? # # | | ??????????????????????????????????? # # | | ??????????????????????????????????? # ] # | | ??????????????????????????????????? # # | | ??????????????????????????????????? # # | | ??????????????????????????????????? # [[ # | | ??????????????????????????????????? # [[ # | | ??????????????????????????????????# # [[ # | | ??????????????????????????????????# # # | | ??????????????????????????????????# # + | | ??????????????????????????????????# # ! # | | ??????????????????????????????????# # % # | | ????????????????####????########??# ##+######+#### | | ????????????????? ??# ! #??# #???????? | | ???????????????????# ?# """#??# #??????? | | ???????????????????# # s """#??# #????? | | ???????????????????# + a"""#### m ####? | | ???????????????????# #ss /Yu | | ???????????????????# ??#@ ####### ########### | | ????????????????? /????########?????# #?????????? | | ???????????????"""???????????????????# #?????????? | | ???????????????"?????????????????????? #?????????? | | ?????????????????????????????????????? #?????????? | | ?????????????????????????????????????? ?????????? | | ?????????????????????????????????????? ?????????? | | ?????????????????????????????????????? ?????????? | | ??????????????????????????????????????< ?????????? | | ?????????????????????????????????????? ?????????? | | ??????????????????????????????????????? ?????????? | | ?????????????????????????????????????????????????? | | ?????????????????????????????????????????????????? | | ?????????????????????????????????????????????????? | | ?????????????????????????????????????????????????? | | ?????????????????????????????????????????????????? | | ?????????????????????????????????????????????????? | | ?????????????????????????????????????????????????? | | ?????????????????????????????????????????????????? | | ?????????????????????????????????????????????????? | | ?????????????????????????????????????????????????? | | ?????????????????????????????????????????????????? | | ?????????????????????????????????????????????????? | | ?????????????????????????????????????????????????? | | ?????????????????????????????????????????????????? | +----------------------------------------------------+ Best States ------------- Heat Dissipation 34 Coolant Potential 50 Energy Generation 29 Energy Capacity 480 Matter Stores 300 Matter Capacity 300 Sight Range 16 Terrain Scan Density 10 Additional Mass Support 6 Armor Coverage 150 Melee Speed Boost 20 Evasion (%) 55 Targeting Accuracy 11 Melee Accuracy 6 Launcher Accuracy 20 Target Analysis 6 Recoil Reduction 3 Particle Charging 15 Offensive Hacking 20 Defensive Hacking 10 Relay Coupler Types 4 Relay Coupler Value 85 Item Schematics ----------------- None Robot Schematics ------------------ None Fabricated ------------ Nothing Repaired ---------- Nothing Alien Tech Used ----------------- None Achievements -------------- Slippery One Challenges ------------ None Game ------ Seed ExpertNetworkedStripper Manual? 0 Play Time 00:59:08 Cumulative 26.6 hours Start 2025.08.10 @ 21:35:29 End 2025.08.13 @ 10:58:08 Sessions 6 Manual Loads 0 Difficulty Rogue Special Mode None Game No. 36 Rogue 36 Adventurer 0 Explorer 0 Win Type - Total 0 Types 0/0/0/0/0/0/0/0/0/0 Lore% 13 Gallery% 26 Achievement% 22 Wizard Run 0 Options --------- Layout 1 ASCII 0 Keyboard 0 Movement Mouse Keybinds 0 Fullscreen 1 Font 32/SmallcapsGlow Map View 50x35 Zoom Use 0% Tactical HUD 1 Map Filters NONE Filters NONE Steam 1 RUN: 545cf854-31ed-4a43-adea-99643fb8bc3a